bitfinex-derivatives/quotes_ETHF0:USTF0_20250106
["timestamp","ask_amount","ask_price","bid_price","bid_amount"]
[1736148947853,0.27403,3650.1,3650.0,0.27403]
[1736148948655,0.27404,3650.1,3649.9,0.27404]
[1736148948856,0.27404,3650.1,3650.0,0.27404]
[1736148949858,3.72553256,3650.3,3649.8,2.75153811]
[1736148950254,0.27403,3650.1,3650.0,0.27404]
[1736148951960,3.72553256,3650.3,3649.8,2.75153811]
[1736148952156,3.72553256,3650.3,3650.1,2.46956811]
[1736148952157,0.27403,3650.2,3650.1,2.46956811]
[1736148952655,3.99955256,3650.3,3650.2,0.27402]
[1736148952958,3.18943256,3650.3,3650.2,0.27402]
[1736148953763,3.48181,3650.4,3650.3,0.27401]
[1736148954459,6.67124256,3650.4,3650.3,0.27401]
[1736148955165,6.67124256,3650.4,3650.1,2.19553811]
[1736148955166,0.27402,3650.2,3650.1,2.19553811]
[1736148955465,0.27402,3650.2,3650.1,2.46956811]
[1736148960685,0.27402,3650.2,3650.1,2.19553811]
[1736148960883,0.27405,3649.8,3649.7,4.27865643]
[1736148961189,0.27405,3649.8,3649.7,4.55271643]
[1736148961483,0.27403,3650.1,3650.0,0.27403]
[1736148961683,0.27403,3650.1,3650.0,2.46956811]
[1736148961879,3.46346256,3650.1,3650.0,2.46956811]
[1736148962276,3.18943256,3650.1,3650.0,2.46957811]
[1736148963279,3.48178,3650.8,3650.0,2.46957811]
[1736148963280,3.46342256,3650.7,3650.0,6.47419454]
[1736148963480,3.46342256,3650.7,3650.6,0.27399]
[1736148966183,0.27399,3650.7,3650.6,0.27399]
[1736148967285,0.27399,3650.7,3650.3,2.19553811]
[1736148967286,6.39723256,3650.8,3650.7,0.27398]
[1736148967581,3.2078,3650.8,3650.7,0.27398]
[1736148967977,3.2078,3650.8,3650.7,0.76088]
[1736148969987,3.48178,3650.8,3650.7,0.76088]
[1736148970886,3.2078,3650.8,3650.3,6.47419454]
[1736148971093,0.274,3650.6,3650.5,0.274]
[1736148971986,3.60621675,3650.6,3650.5,0.274]
[1736148972197,3.60621675,3650.6,3650.5,2.46953811]
[1736148972490,4.25044596,3650.8,3650.7,0.27398]
[1736148973082,4.25044596,3650.8,3650.7,1.47262446]
[1736148973392,4.25044596,3651.6,3650.7,4.27865643]
[1736148973693,4.25044596,3651.6,3651.3,2.19553811]
[1736148973987,4.52436596,3651.6,3651.4,0.27393]
[1736148974985,4.25044596,3651.6,3651.4,0.27393]
[1736148975589,4.52436596,3651.6,3651.4,0.27393]
[1736148976387,0.27392,3651.6,3651.4,0.27393]
[1736148976590,0.27393,3651.4,3651.3,2.19553811]
[1736148976988,0.27393,3651.5,3651.3,2.46947811]
[1736148977395,0.27393,3651.4,3651.2,0.27394]
[1736148977792,3.2078,3651.7,3651.0,2.19553811]
[1736148977992,0.27396,3651.0,3650.9,4.27865643]
[1736148978501,1.24016,3651.1,3650.9,4.55261643]
[1736148978796,0.27396,3651.0,3650.9,4.27865643]
[1736148979188,0.27396,3651.0,3650.8,0.27397]
[1736148979389,0.27398,3650.8,3650.7,2.19553811]
[1736148979593,3.2078,3650.8,3650.5,4.27865643]
[1736148979789,0.27399,3650.6,3650.5,4.27865643]
[1736148980393,0.274,3650.5,3650.4,2.19553811]
[1736148980594,1.2402,3650.5,3650.4,2.19553811]
[1736148981604,0.27401,3650.4,3650.2,0.27402]
[1736148981998,0.27401,3650.3,3650.1,2.46955811]
[1736148982301,0.9662,3650.5,3649.9,4.27865643]
[1736148982302,0.27404,3650.0,3649.9,4.27865643]
[1736148983194,0.27403,3650.1,3649.9,4.55269643]
[1736148983397,0.4724,3650.2,3649.8,2.19553811]
[1736148983595,0.4724,3650.2,3649.9,0.27404]
[1736148983596,0.27403,3650.1,3649.9,0.27404]
[1736148985091,0.27403,3650.1,3649.8,2.19553811]
[1736148985092,0.4724,3650.2,3650.1,0.27403]
[1736148985293,0.4724,3650.2,3650.1,2.46956811]
[1736148986204,0.74642,3650.2,3650.1,2.19553811]
[1736148986602,0.4724,3650.2,3650.1,2.46956811]
[1736148987600,3.48181,3650.4,3650.3,0.27401]
[1736148987601,3.2078,3650.4,3650.3,0.27401]
[1736148989697,3.48181,3650.4,3650.3,0.27401]
[1736148990201,3.2078,3650.4,3650.3,0.27401]
[1736148991206,3.2078,3650.4,3650.1,2.19553811]
[1736148991403,3.2078,3650.4,3650.3,0.27401]
[1736148992613,0.5012,3650.8,3650.7,0.27398]
[1736148992807,0.9967,3650.8,3650.7,0.27398]
[1736148997314,0.9967,3650.8,3650.7,2.46951811]
[1736148997605,2.12989887,3651.0,3650.9,0.27397]
[1736148998301,3.2078,3651.2,3650.7,3.03133811]
[1736148998501,3.2078,3651.2,3651.1,2.46948811]
[1736149000507,5.33769887,3651.6,3651.5,0.27392]
[1736149000715,2.12989887,3651.6,3651.5,2.46945811]
[1736149002414,0.9834,3651.8,3651.7,0.27391]
[1736149015615,0.9834,3651.8,3651.5,2.19553811]
[1736149015821,0.27391,3651.7,3651.5,2.46945811]
[1736149016226,4.46511,3651.8,3651.6,0.27391]
[1736149016528,4.1912,3651.8,3651.6,0.27391]
[1736149016726,0.27391,3651.7,3651.6,0.27391]
[1736149016930,4.4651,3651.8,3651.6,0.27391]
[1736149017628,4.1912,3651.8,3651.6,0.27391]
[1736149017829,0.27391,3651.7,3651.6,0.27391]
[1736149018029,4.1912,3651.8,3651.5,2.19553811]
[1736149018232,0.27391,3651.7,3651.5,2.46945811]
[1736149018429,0.27391,3651.7,3651.5,2.19553811]
[1736149018624,0.27391,3651.7,3651.6,0.27392]
[1736149018824,4.1912,3651.8,3651.5,2.19553811]
[1736149018825,0.27392,3651.6,3651.5,2.19553811]
[1736149019425,0.27392,3651.6,3651.5,2.46945811]
[1736149020535,0.27392,3651.6,3651.5,2.19553811]
[1736149021240,0.27392,3651.6,3651.5,2.46945811]
[1736149021541,0.27391,3651.7,3651.5,2.19553811]
[1736149021742,0.27392,3651.6,3651.5,2.46945811]
[1736149021934,4.1912,3651.8,3651.5,2.46945811]
[1736149022441,0.27392,3651.6,3651.5,2.46945811]
[1736149022643,0.27391,3651.7,3651.5,2.46945811]
[1736149023034,4.1912,3651.8,3651.5,2.46945811]
[1736149023035,0.27392,3651.6,3651.5,2.46945811]
[1736149024041,0.27392,3651.7,3651.5,2.46945811]
[1736149025333,0.27392,3651.7,3651.5,2.19553811]
[1736149025537,4.1912,3651.8,3651.5,2.19553811]
[1736149025738,0.27392,3651.6,3651.5,0.27392]
[1736149025934,0.27392,3651.6,3651.2,2.19553811]
[1736149025935,0.27394,3651.3,3651.2,0.27395]
[1736149026442,4.1912,3651.8,3651.0,3.2078]
[1736149026740,4.1912,3651.8,3651.1,0.27395]
[1736149026741,1.0093,3651.2,3651.1,0.27395]
[1736149028844,0.27396,3651.0,3650.9,2.46950811]
[1736149029045,1.0093,3651.2,3651.1,0.27395]
[1736149029046,1.28325,3651.2,3651.1,0.27395]
[1736149029240,1.0093,3651.2,3650.9,2.19553811]
[1736149029438,0.27395,3651.1,3651.0,0.27396]
[1736149029639,1.0093,3651.2,3650.9,2.19553811]
[1736149029840,1.28325,3651.2,3651.1,0.27395]
[1736149030340,1.0093,3651.2,3650.9,2.19553811]
[1736149030536,1.28325,3651.2,3651.1,0.27395]
[1736149030939,0.27395,3651.1,3651.0,0.27396]
[1736149032346,1.0093,3651.2,3650.9,2.19553811]
[1736149032645,0.27396,3651.1,3651.0,0.27396]
[1736149033235,0.27395,3651.1,3651.0,0.27396]
[1736149034141,1.0093,3651.2,3650.7,2.19553811]
[1736149034540,0.27396,3651.1,3651.0,0.27396]
[1736149035437,0.27396,3651.1,3651.0,2.46949811]
[1736149035840,1.28325,3651.2,3651.0,2.46949811]
[1736149036539,1.28325,3651.2,3651.0,2.19553811]
[1736149036745,1.28325,3651.2,3651.1,0.27395]
[1736149036944,0.27395,3651.1,3651.0,2.46949811]
[1736149038542,1.28325,3651.2,3651.1,0.27395]
[1736149038741,1.0093,3651.2,3651.1,0.27395]
[1736149039041,4.49105,3651.2,3651.1,0.27395]
[1736149039944,4.2171,3651.2,3650.7,2.19553811]
[1736149040145,0.27397,3651.0,3650.9,0.27396]
[1736149040945,4.2171,3651.2,3650.7,2.19553811]
[1736149041247,4.49105,3651.2,3651.1,0.27395]
[1736149043649,0.27396,3651.1,3651.0,0.27396]
[1736149044548,4.49105,3651.2,3651.1,0.27395]
[1736149045352,6.62078758,3651.2,3651.1,0.27395]
[1736149045851,0.27395,3651.1,3651.0,2.46949811]
[1736149046054,0.27395,3651.1,3651.0,2.19553811]
[1736149046350,0.27397,3651.0,3650.9,0.27396]
[1736149046750,0.27397,3650.9,3650.8,0.27397]
[1736149047545,4.2171,3651.2,3650.5,4.27865643]
[1736149047546,0.68489,3651.1,3650.5,4.27865643]
[1736149047852,0.27399,3650.6,3650.5,4.27865643]
[1736149048149,0.274,3650.5,3650.4,2.46954811]
[1736149048944,0.274,3650.5,3650.4,2.19553811]
[1736149049247,3.7269,3650.8,3650.4,2.19553811]
[1736149049454,3.7269,3650.8,3650.5,0.27399]
[1736149049644,0.27399,3650.6,3650.5,0.27399]
[1736149051555,0.274,3650.5,3650.4,2.19553811]
[1736149051852,1.289,3650.5,3650.4,2.46954811]
[1736149052248,1.015,3650.5,3650.4,2.46954811]
[1736149053755,1.289,3650.5,3650.4,2.46954811]
[1736149053950,0.27402,3650.2,3650.1,2.46955811]
[1736149056343,3.48182,3650.3,3650.2,0.27402]
[1736149056555,0.27402,3650.2,3650.1,2.46955811]
[1736149056751,0.79372,3650.2,3650.1,2.46955811]
[1736149057250,0.5197,3650.2,3650.1,2.46955811]
[1736149057452,0.79372,3650.2,3650.1,2.46955811]
[1736149058147,0.5197,3650.2,3650.1,2.46955811]
[1736149058642,0.79372,3650.2,3650.1,2.46955811]
[1736149059455,1.015,3650.5,3650.4,0.27401]
[1736149059456,0.80201,3650.5,3650.4,0.27401]
[1736149059652,1.29761,3650.5,3650.4,2.46954811]
[1736149060758,1.29761,3650.5,3650.4,2.19553811]
[1736149061060,0.27401,3650.3,3650.2,0.27402]
[1736149062054,0.27402,3650.2,3650.1,2.46956811]
[1736149062957,0.27402,3650.2,3650.1,1.26503521]
[1736149063461,3.2078,3650.4,3649.6,7.48645643]
[1736149063663,0.27404,3650.0,3649.9,0.27404]
[1736149064156,0.75934,3650.0,3649.9,0.27404]
[1736149064955,0.75934,3650.0,3649.9,1.26504521]
[1736149066355,0.75934,3650.0,3649.9,0.99100521]
[1736149067354,0.75934,3650.0,3649.9,1.26504521]
[1736149067860,0.27404,3649.9,3649.8,0.27405]
[1736149068057,0.27404,3649.9,3649.8,1.26505521]
[1736149068254,0.4931,3649.9,3649.8,1.26505521]
[1736149068655,0.76714,3649.9,3649.8,0.99100521]
[1736149069562,0.76714,3649.9,3649.8,1.26505521]
[1736149070663,0.4931,3649.9,3649.8,2.25606042]
[1736149071760,0.76714,3649.9,3649.8,2.25606042]
[1736149073960,0.76714,3649.9,3649.8,1.26505521]
[1736149077759,0.4931,3649.9,3649.8,1.26505521]
[1736149080868,0.4931,3649.9,3649.8,0.99100521]
[1736149080869,0.76714,3649.9,3649.8,0.99100521]
[1736149081063,0.27406,3649.7,3649.6,5.26966164]
[1736149081272,0.27405,3649.8,3649.7,0.27405]
[1736149081470,0.4931,3649.9,3649.6,5.26966164]
[1736149081676,0.4931,3649.9,3649.7,0.27405]
[1736149081980,0.27405,3649.8,3649.7,1.26506521]
[1736149082864,0.27405,3649.8,3649.7,0.27406]
[1736149083075,0.27405,3649.8,3649.7,1.26506521]
[1736149084376,0.76715,3649.9,3649.8,0.27405]
[1736149086879,0.27405,3649.8,3649.7,1.26506521]
[1736149087272,0.27405,3649.8,3649.7,0.99100521]
[1736149087472,0.4931,3649.9,3649.8,0.27405]
[1736149088371,0.76714,3649.9,3649.8,0.27405]
[1736149091280,0.4931,3649.9,3649.8,0.27405]
[1736149091479,2.12973758,3650.0,3649.9,0.27404]
[1736149091678,2.12973758,3650.0,3649.9,0.78854]
[1736149092777,2.40377758,3650.0,3649.9,1.26504521]
[1736149092978,0.27404,3650.0,3649.9,11.09305327]
[1736149093679,0.27404,3650.0,3649.9,11.36709327]
[1736149094275,3.7363,3650.3,3649.9,11.09305327]
[1736149094579,2.12973758,3650.1,3650.0,0.27404]
[1736149095680,3.1919512,3650.2,3650.0,0.27404]
[1736149095681,2.12973758,3650.2,3650.1,0.27403]
[1736149095985,2.12973758,3650.2,3650.1,1.26503521]
[1736149096777,4.01032,3650.3,3650.1,4.68588679]
[1736149096983,3.7363,3650.3,3650.2,0.27402]
[1736149097887,3.7363,3650.3,3650.2,4.58404493]
[1736149097888,4.01031,3650.3,3650.2,4.58404493]
[1736149098085,3.7363,3650.3,3650.2,4.58404493]
[1736149098484,4.01031,3650.3,3650.2,4.58404493]
[1736149099483,7.2022612,3650.3,3650.2,0.27402]
[1736149099784,6.9282512,3650.3,3650.2,0.27402]
[1736149100289,3.7363,3650.3,3650.2,0.27402]
[1736149101581,3.1919512,3650.4,3650.3,0.27401]
[1736149101786,3.1919512,3650.4,3650.3,1.26501521]
[1736149102480,3.1919512,3650.4,3650.3,1.38251521]
[1736149103282,5.87848243,3650.8,3650.3,4.80305173]
[1736149103486,5.87848243,3650.8,3650.7,0.27398]
[1736149104186,5.87848243,3650.8,3650.3,3.69454652]
[1736149104486,0.27401,3650.4,3650.3,0.27401]
[1736149105079,1.0331,3650.7,3650.2,8.60917446]
[1736149105279,0.5113,3650.3,3650.2,8.88319446]
[1736149105891,0.5113,3650.3,3650.2,0.27402]
[1736149108291,2.13208243,3650.4,3650.1,4.30832034]
[1736149108587,2.13208243,3650.5,3650.3,5.40366958]
[1736149108792,2.13208243,3650.5,3650.4,3.08827958]
[1736149110092,2.13208243,3650.5,3650.4,2.46987958]
[1736149110293,1.0153,3650.6,3650.5,0.274]
[1736149110588,1.0153,3650.6,3650.4,3.69155252]
[1736149110789,0.274,3650.5,3650.4,3.69155252]
[1736149111788,0.27401,3650.4,3650.3,0.27401]
[1736149112392,0.274,3650.5,3650.3,0.27401]
[1736149112790,0.27401,3650.4,3650.0,4.30598445]
[1736149113094,3.2078,3650.4,3650.0,4.30598445]
[1736149113294,0.76492,3650.3,3650.1,0.27403]
[1736149113490,0.76492,3650.3,3650.0,4.30598445]
[1736149113491,0.27402,3650.2,3650.0,4.30598445]
[1736149113695,0.27402,3650.2,3650.0,4.58001445]
[1736149114494,2.13208243,3650.2,3649.7,4.30598445]
[1736149114688,2.13208243,3650.2,3649.9,0.27404]
[1736149114689,0.27403,3650.1,3649.9,0.27404]
[1736149114888,1.0402,3650.0,3649.9,0.27404]
[1736149122391,1.0402,3650.0,3649.8,4.30598445]
[1736149122392,0.27404,3649.9,3649.8,3.49218445]
[1736149122586,4.248,3650.0,3649.8,3.49218445]
[1736149122991,4.52204,3650.0,3649.9,0.27404]
[1736149123592,7.7139912,3650.0,3649.9,0.27404]
[1736149124096,7.4399512,3650.0,3649.9,0.27404]
[1736149124592,7.85111533,3650.0,3649.9,0.27404]
[1736149125494,8.12515533,3650.0,3649.9,0.27404]
[1736149126195,6.65092572,3650.0,3649.9,0.27404]
[1736149126996,0.27405,3649.9,3649.8,0.27405]
[1736149129190,6.37688572,3650.0,3649.6,0.9913718]
[1736149129391,6.65092572,3650.0,3649.9,0.27404]
[1736149129891,6.37688572,3650.0,3649.4,0.9913718]
[1736149130093,0.27406,3649.8,3649.7,0.27405]
[1736149130293,1.2654218,3649.9,3649.8,0.27405]
[1736149130799,0.27405,3649.8,3649.7,0.27406]
[1736149132292,3.12025752,3649.9,3649.4,1.2654518]
[1736149132488,1.2654318,3649.7,3649.4,0.9913718]
[1736149132695,1.2654318,3649.7,3649.5,0.27407]
[1736149134297,2.40294572,3649.8,3649.7,0.27406]
[1736149134493,2.40294572,3649.8,3649.4,0.9913718]
[1736149134697,0.27406,3649.7,3649.6,0.27406]
[1736149135099,2.40294572,3649.8,3649.6,0.27406]
[1736149136107,0.27406,3649.7,3649.6,0.27406]
[1736149136798,6.32805752,3649.9,3649.4,0.9913718]
[1736149137007,0.27406,3649.7,3649.5,0.27407]
[1736149137901,0.27407,3649.6,3649.5,0.27407]
[1736149139695,0.27405,3649.8,3649.5,0.27407]
[1736149139901,0.27407,3649.6,3649.5,0.27407]
[1736149141303,0.27406,3649.7,3649.6,0.27406]
[1736149141494,0.27406,3649.7,3649.6,0.27407]
[1736149141999,0.27406,3649.7,3649.6,1.2654418]
[1736149142195,0.27406,3649.7,3649.6,0.9913718]
[1736149142395,0.27406,3649.7,3649.6,1.2654418]
[1736149142601,0.27406,3649.7,3649.6,0.9913718]
[1736149143003,0.27406,3649.7,3649.6,0.27407]
[1736149143310,0.27407,3649.6,3649.5,0.27407]
[1736149143600,0.27407,3649.5,3649.4,1.2654518]
[1736149143800,0.27409,3649.3,3649.2,0.27409]
[1736149143997,0.5271,3649.4,3649.0,7.93943851]
[1736149144200,0.80119,3649.4,3649.3,0.27409]
[1736149144400,0.5271,3649.4,3649.2,0.9913718]
[1736149144601,0.80118,3649.4,3649.3,0.27409]
[1736149145300,0.2741,3649.2,3649.0,6.94806671]
[1736149145498,0.4892,3649.1,3649.0,7.22217671]
[1736149145807,0.4892,3649.1,3649.0,6.73317671]
[1736149146000,0.7633,3649.1,3649.0,0.27411]
[1736149146196,0.4892,3649.1,3649.0,0.27411]
[1736149146499,1.4805718,3649.1,3648.7,1.4887718]
[1736149148403,1.4805718,3649.1,3649.0,0.27411]
[1736149149206,1.7546818,3649.1,3648.7,1.4887718]
[1736149149507,1.7546818,3649.1,3649.0,0.27411]
[1736149152001,1.4805718,3649.1,3649.0,0.27411]
[1736149152205,0.4892,3649.1,3648.9,0.9913718]
[1736149152405,0.27412,3648.9,3648.7,0.4974]
[1736149152709,0.27411,3649.0,3648.9,0.27412]
[1736149153011,0.9913718,3649.3,3648.9,0.9913718]
[1736149153206,0.4936,3649.3,3649.2,0.2741]
[1736149153710,0.4936,3649.3,3649.2,0.802]
[1736149153910,2.12888572,3649.4,3649.3,0.27409]
[1736149154206,2.12888572,3649.4,3649.3,1.2654618]
[1736149154607,3.2078,3649.5,3649.3,0.9913718]
[1736149154803,3.2078,3649.5,3649.4,0.27408]
[1736149155605,3.2078,3649.5,3649.2,1.5192718]
[1736149155801,0.5192,3649.4,3649.2,1.5192718]
[1736149156007,0.2741,3649.2,3649.1,0.2741]
[1736149156209,0.27409,3649.3,3649.2,0.2741]
[1736149156818,0.27411,3649.0,3648.9,0.27411]
[1736149157007,0.9913718,3649.1,3648.7,1.4844718]
[1736149157314,0.27412,3648.9,3648.8,0.27412]
[1736149158108,0.8145,3649.2,3649.1,0.2741]
[1736149159718,0.5404,3649.2,3649.1,0.2741]
[1736149160104,0.8145,3649.2,3649.1,0.2741]
[1736149161919,0.27411,3649.1,3649.0,0.27411]
[1736149162616,0.27412,3649.0,3648.9,0.27412]
[1736149163714,0.5404,3649.2,3648.7,0.4931]
[1736149163913,0.27411,3649.1,3649.0,0.27411]
[1736149164116,0.27412,3649.0,3648.9,0.27412]
[1736149164506,0.27411,3649.1,3649.0,0.27411]
[1736149165919,0.5404,3649.2,3648.7,0.4931]
[1736149166118,0.27412,3648.9,3648.8,0.27412]
[1736149166716,0.27411,3649.1,3649.0,0.27411]
[1736149171513,5.33668572,3649.3,3648.9,0.5282]
[1736149171716,0.27411,3649.1,3649.0,0.27411]
[1736149172319,5.33668572,3649.3,3648.9,0.5282]
[1736149172521,5.33668572,3649.3,3649.2,2.47170932]
[1736149173118,5.61077572,3649.3,3648.9,2.72580932]
[1736149173327,5.33668572,3649.3,3648.9,2.72580932]
[1736149173823,3.2078,3649.3,3649.2,0.2741]
[1736149174528,0.2741,3649.2,3649.1,0.2741]
[1736149174918,3.2078,3649.3,3649.1,0.2741]
[1736149175131,3.2078,3649.3,3648.8,9.66686671]
[1736149175326,0.27411,3649.0,3648.9,0.27411]
[1736149176020,0.27411,3649.0,3648.8,9.66686671]
[1736149176221,0.27411,3649.0,3648.8,9.94098671]
[1736149176421,0.27411,3649.0,3648.8,3.48192]
[1736149176618,5.33668572,3649.3,3648.8,3.2078]
[1736149176827,0.2741,3649.1,3649.0,0.27411]
[1736149178927,0.27411,3649.0,3648.9,0.27412]
[1736149179525,0.27411,3649.1,3649.0,0.27411]
[1736149180127,5.33668572,3649.3,3648.8,3.2078]
[1736149180431,5.33668572,3649.3,3649.0,0.27411]
[1736149180624,0.2741,3649.2,3649.0,0.27411]
[1736149181731,0.2741,3649.1,3649.0,0.27411]
[1736149181932,0.764,3649.1,3649.0,0.27411]
[1736149182930,0.27411,3649.0,3648.8,3.48192]
[1736149183132,1.29321,3649.0,3648.9,0.27412]
[1736149184135,0.27412,3648.9,3648.8,0.27412]
[1736149184332,1.0191,3649.0,3648.7,0.99167291]
[1736149184532,1.29321,3649.0,3648.9,0.27412]
[1736149185539,1.0191,3649.0,3648.9,0.27412]
[1736149186740,1.29321,3649.0,3648.9,0.27412]
[1736149186929,1.0191,3649.0,3648.9,0.27412]
[1736149188732,3.14798572,3649.0,3648.9,0.27412]
[1736149192237,2.12888572,3649.0,3648.9,1.26579291]
[1736149192536,2.12888572,3649.0,3648.9,1.78179291]
[1736149192938,2.12888572,3649.0,3648.9,0.79012]
[1736149193133,2.40299572,3649.1,3648.9,0.516]
[1736149193327,2.40299572,3649.1,3649.0,0.27411]
[1736149194233,3.4660612,3649.1,3649.0,0.27411]
[1736149195234,3.87730893,3649.1,3649.0,0.27411]
[1736149196644,0.68535773,3649.1,3649.0,0.27411]
[1736149197543,0.41124773,3649.1,3648.7,0.99167291]
[1736149197748,0.27412,3649.0,3648.9,0.27411]
[1736149198447,0.27413,3648.8,3648.7,0.27412]
[1736149199236,3.2078,3648.8,3648.6,6.45906671]
[1736149199436,3.2078,3648.8,3648.3,0.5203]
[1736149199437,0.27414,3648.6,3648.5,6.45906671]
[1736149199643,1.26581291,3648.6,3648.5,6.45906671]
[1736149201446,0.27417,3648.3,3648.2,0.27417]
[1736149201646,0.27417,3648.3,3648.0,7.96133962]
[1736149201945,1.4881,3648.2,3648.1,0.27417]
[1736149202741,0.27418,3648.1,3648.0,0.5106]
[1736149202941,0.27419,3648.0,3647.9,6.45906671]
[1736149203248,4.47366291,3648.0,3647.9,6.45906671]
[1736149204247,0.27422,3647.6,3647.5,5.67156671]
[1736149204542,4.47369291,3647.6,3647.5,5.67156671]
[1736149204847,5.56369291,3647.6,3647.5,5.67156671]
[1736149205043,6.55536582,3647.6,3647.5,5.67156671]
[1736149205443,6.55536582,3647.6,3647.5,2.80996672]
[1736149205640,6.28114582,3647.6,3646.6,9.87513737]
[1736149205848,1.26595291,3646.9,3646.6,9.87513737]
[1736149206144,4.47375291,3646.7,3646.6,8.60917446]
[1736149206841,3.48208,3646.7,3646.6,8.60917446]
[1736149207047,3.2078,3646.7,3646.6,8.60917446]
[1736149207348,0.27426,3647.0,3646.6,8.60917446]
[1736149207545,5.33361094,3647.1,3647.0,0.27426]
[1736149208750,3.2078,3647.1,3647.0,0.27426]
[1736149208941,3.2078,3647.1,3646.7,2.68349193]
[1736149209146,3.48205,3647.1,3646.8,0.27427]
[1736149209347,3.2078,3647.1,3646.9,0.27426]
[1736149209548,3.48205,3647.1,3647.0,0.5134]
[1736149210144,3.2078,3647.1,3647.0,0.5134]
[1736149210350,3.48205,3647.1,3647.0,0.5134]
[1736149212054,3.2078,3647.1,3646.7,0.483]
[1736149212351,0.27427,3646.9,3646.8,0.5134]
[1736149212953,0.78356,3647.0,3646.8,0.5134]
[1736149213153,3.2078,3647.1,3647.0,0.27426]
[1736149213949,0.27426,3647.0,3646.8,0.5134]
[1736149214256,3.2078,3647.1,3646.8,0.5134]
[1736149214463,3.48205,3647.1,3646.9,0.27427]
[1736149214657,3.2078,3647.1,3646.8,0.5134]
[1736149214857,0.27427,3647.0,3646.8,0.5134]
[1736149215063,3.48206,3647.1,3646.8,0.78767]
[1736149215351,0.27426,3647.0,3646.8,0.78767]
[1736149215556,0.27427,3646.9,3646.8,0.5134]
[1736149215759,0.2743,3646.6,3646.3,0.27431]
[1736149216057,0.27429,3646.7,3646.4,0.27431]
[1736149216659,0.75548,3646.8,3646.5,0.2743]
[1736149217059,0.4812,3646.8,3646.6,0.27429]
[1736149217462,0.4783,3646.9,3646.4,2.20049193]
[1736149217655,0.4783,3646.9,3646.7,0.27428]
[1736149218058,0.4783,3646.9,3646.8,0.5082]
[1736149218460,3.2078,3647.1,3647.0,0.27426]
[1736149218655,3.2078,3647.1,3647.0,2.47475193]
[1736149218656,2.4202,3647.1,3647.0,2.47475193]
[1736149218858,2.12581094,3647.9,3647.1,0.68564]
[1736149219064,2.12581094,3647.9,3647.8,0.2742]
[1736149219560,2.12581094,3647.9,3647.7,0.75511]
[1736149219561,2.40000094,3647.9,3647.7,0.75511]
[1736149219761,2.12581094,3647.9,3647.8,0.2742]
[1736149219963,0.4921,3648.1,3647.8,0.2742]
[1736149220156,0.76628,3648.1,3647.9,0.27419]
[1736149221258,0.4921,3648.1,3647.8,0.2742]
[1736149221464,0.76628,3648.1,3647.8,0.2742]
[1736149221853,0.76628,3648.1,3647.9,0.27419]
[1736149222053,0.76628,3648.1,3647.7,1.0032]
[1736149222054,0.4921,3648.1,3647.7,1.0032]
[1736149222252,4.48596,3648.4,3648.1,0.27417]
[1736149222454,0.27416,3648.3,3648.2,0.5207]
[1736149222759,4.48596,3648.4,3648.2,0.5207]
[1736149222949,0.27416,3648.3,3648.2,0.5207]
[1736149223149,3.2078,3648.4,3648.2,0.5207]
[1736149223355,3.2078,3648.4,3648.3,2.47465193]
[1736149223658,2.61341094,3649.0,3648.8,0.27413]
[1736149224351,0.4876,3649.0,3648.8,0.27413]
[1736149224555,0.4876,3649.0,3648.4,0.5223]
[1736149224556,0.76172,3649.0,3648.4,0.5223]
[1736149224762,0.4876,3649.0,3648.7,0.27413]
[1736149224960,0.27412,3648.9,3648.7,0.27413]
[1736149225966,0.27412,3648.9,3648.4,0.5223]
[1736149226261,0.27413,3648.8,3648.5,0.27414]
[1736149226456,0.27414,3648.7,3648.5,0.27414]
[1736149226661,0.27413,3648.8,3648.5,0.27414]
[1736149226853,0.4876,3649.0,3648.2,0.5207]
[1736149227061,0.27417,3648.3,3648.0,0.27418]
[1736149227258,0.27417,3648.2,3648.0,0.27418]
[1736149228359,3.7043,3648.7,3648.0,0.27418]
[1736149228559,0.27416,3648.4,3648.1,0.27417]
[1736149228863,3.7043,3648.7,3647.8,0.5155]
[1736149228864,0.27415,3648.6,3648.3,0.27416]
[1736149229065,3.7043,3648.7,3648.2,2.20049193]
[1736149229261,3.97844,3648.7,3648.4,0.27415]
[1736149230660,0.27415,3648.6,3648.3,0.27416]
[1736149232168,0.27415,3648.6,3648.4,0.27415]
[1736149233369,0.27415,3648.6,3648.4,0.27416]
[1736149234365,0.27414,3648.6,3648.4,0.27416]
[1736149234559,3.7043,3648.7,3648.2,2.20049193]
[1736149234760,3.7043,3648.7,3648.3,0.27416]
[1736149234966,3.7043,3648.7,3647.9,5.40829193]
[1736149235270,0.27416,3648.3,3648.1,0.27417]
[1736149235570,0.27418,3648.1,3647.9,0.27419]
[1736149235766,0.5232,3648.2,3647.6,2.20049193]
[1736149235967,0.2742,3647.9,3647.6,2.20049193]
[1736149236264,0.27419,3647.9,3647.7,0.2742]
[1736149236867,0.27421,3647.7,3647.5,3.48202]
[1736149237068,0.27421,3647.8,3647.6,0.27422]
[1736149238273,0.2742,3647.9,3647.6,0.27422]
[1736149238474,0.2742,3647.9,3647.7,0.27421]
[1736149239577,0.9674,3648.1,3647.5,3.2078]
[1736149239778,0.2742,3647.8,3647.6,0.27421]
[1736149240269,0.27423,3647.5,3647.3,2.47473193]
[1736149240471,0.27422,3647.6,3647.4,0.27423]
[1736149240673,0.5164,3647.5,3647.4,0.27423]
[1736149243876,1.0081,3647.5,3647.4,0.27423]
[1736149245089,1.28233,3647.5,3647.3,2.47472193]
[1736149245281,0.27424,3647.3,3647.1,0.27425]
[1736149245487,0.27425,3647.2,3647.0,2.47475193]
[1736149245685,0.27425,3647.1,3646.9,0.76997]
[1736149246586,0.27427,3646.9,3646.7,3.48208]
[1736149246795,0.5252,3646.8,3646.7,3.48208]
[1736149247090,0.5252,3646.8,3646.7,5.68257193]
[1736149249386,0.27426,3647.1,3646.7,5.40829193]
[1736149249591,0.27426,3647.1,3646.9,0.27427]